[Event "*** Titled Tuesday Blitz"]
[Site "Chess.com"]
[Date "2020.04.21"]
[Round "4"]
[White "amiralfio"]
[Black "kreonx"]
[Result "1-0"]
[WhiteElo "2521"]
[BlackElo "2245"]
[TimeControl "180+1"]
[EndTime "10:37:29 PDT"]
[Termination "amiralfio won by resignation"]

1. e4 {[%clk 0:03:00.9]} 1... c6 {[%clk 0:02:59.8]} 2. Nf3 {[%clk 0:02:55.1]}
2... d5 {[%clk 0:03:00.7]} 3. Nc3 {[%clk 0:02:55]} 3... g6 {[%clk 0:03:00.2]} 4.
exd5 {[%clk 0:02:44.8]} 4... cxd5 {[%clk 0:02:59.8]} 5. d4 {[%clk 0:02:44.8]}
5... Nc6 {[%clk 0:02:57.8]} 6. Bf4 {[%clk 0:02:42.9]} 6... a6 {[%clk 0:02:53]}
7. Qd2 {[%clk 0:02:40.1]} 7... Bg7 {[%clk 0:02:52.2]} 8. O-O-O {[%clk
0:02:38.6]} 8... Bg4 {[%clk 0:02:48.7]} 9. Be2 {[%clk 0:02:38.1]} 9... e6 {[%clk
0:02:48.1]} 10. Kb1 {[%clk 0:02:27.5]} 10... Bxf3 {[%clk 0:02:42.4]} 11. Bxf3
{[%clk 0:02:28.4]} 11... Nxd4 {[%clk 0:02:42.3]} 12. Bxd5 {[%clk 0:02:02.1]}
12... exd5 {[%clk 0:02:35.2]} 13. Rhe1+ {[%clk 0:02:01.6]} 13... Ne6 {[%clk
0:02:34.9]} 14. Nxd5 {[%clk 0:01:57.8]} 14... Rc8 {[%clk 0:02:16.1]} 15. Nc7+
{[%clk 0:01:55.3]} 15... Ke7 {[%clk 0:01:56.9]} 16. Qb4+ {[%clk 0:01:31.8]}
16... Kf6 {[%clk 0:01:52.9]} 17. Be5+ {[%clk 0:01:27.8]} 17... Kg5 {[%clk
0:01:49.6]} 18. Nxe6+ {[%clk 0:01:17.7]} 18... fxe6 {[%clk 0:01:48.9]} 19. Qf4+
{[%clk 0:01:10.4]} 19... Kh5 {[%clk 0:01:48.5]} 20. g4+ {[%clk 0:00:53.8]} 20...
Kh4 {[%clk 0:01:47.7]} 21. Qg3+ {[%clk 0:00:40.7]} 21... Kg5 {[%clk 0:01:47]}
22. f4+ {[%clk 0:00:41]} 22... Kh6 {[%clk 0:01:46.4]} 23. Qh3+ {[%clk
0:00:41.3]} 1-0

[Event "*** Titled Tuesday Blitz"]
[Site "Chess.com"]
[Date "2020.04.21"]
[Round "4"]
[White "Bryakin_Mikhail"]
[Black "asms9699"]
[Result "1-0"]
[WhiteElo "2795"]
[BlackElo "2617"]
[TimeControl "180+1"]
[EndTime "10:37:32 PDT"]
[Termination "Bryakin_Mikhail won by resignation"]

1. d4 {[%clk 0:02:57.7]} 1... d5 {[%clk 0:03:00]} 2. Nf3 {[%clk 0:02:51.2]} 2...
Nf6 {[%clk 0:02:59.7]} 3. c4 {[%clk 0:02:50.9]} 3... c6 {[%clk 0:03:00.3]} 4.
Nc3 {[%clk 0:02:48.9]} 4... a6 {[%clk 0:03:00.6]} 5. e3 {[%clk 0:02:44.3]} 5...
g6 {[%clk 0:03:00.3]} 6. b3 {[%clk 0:02:39.9]} 6... Bg7 {[%clk 0:03:00.2]} 7.
Bb2 {[%clk 0:02:40.4]} 7... O-O {[%clk 0:03:00.8]} 8. Bd3 {[%clk 0:02:38.8]}
8... Bg4 {[%clk 0:02:59.5]} 9. O-O {[%clk 0:02:38.7]} 9... Bxf3 {[%clk 0:02:58]}
10. Qxf3 {[%clk 0:02:38.6]} 10... e5 {[%clk 0:02:58.6]} 11. dxe5 {[%clk
0:02:31.3]} 11... Nfd7 {[%clk 0:02:58.5]} 12. cxd5 {[%clk 0:02:29.5]} 12... Nxe5
{[%clk 0:02:58.8]} 13. Qe2 {[%clk 0:02:30]} 13... cxd5 {[%clk 0:02:59]} 14. Na4
{[%clk 0:02:19.3]} 14... Nbc6 {[%clk 0:02:55]} 15. Rfd1 {[%clk 0:02:16.1]} 15...
Qh4 {[%clk 0:02:39.9]} 16. Rac1 {[%clk 0:02:07.8]} 16... Rad8 {[%clk 0:02:38]}
17. Nc5 {[%clk 0:02:03.9]} 17... Ng4 {[%clk 0:01:59.8]} 18. h3 {[%clk
0:01:55.8]} 18... Nxf2 {[%clk 0:01:57.4]} 19. Bxg7 {[%clk 0:01:42.5]} 19... Nxd3
{[%clk 0:01:56.9]} 20. Rxd3 {[%clk 0:01:32]} 20... Kxg7 {[%clk 0:01:54.8]} 21.
Nxb7 {[%clk 0:01:32.5]} 21... Ne5 {[%clk 0:01:31.5]} 22. Rd4 {[%clk 0:01:22.1]}
22... Qg5 {[%clk 0:01:21.1]} 23. Nxd8 {[%clk 0:01:21.2]} 23... Rxd8 {[%clk
0:01:22]} 24. Rc5 {[%clk 0:01:11.7]} 1-0

[Event "*** Titled Tuesday Blitz"]
[Site "Chess.com"]
[Date "2020.04.21"]
[Round "4"]
[White "SHIVACalypso"]
[Black "maximnovik"]
[Result "0-1"]
[WhiteElo "2223"]
[BlackElo "2450"]
[TimeControl "180+1"]
[EndTime "10:37:39 PDT"]
[Termination "maximnovik won by resignation"]

1. Nf3 {[%clk 0:03:00.9]} 1... Nf6 {[%clk 0:02:59.3]} 2. c4 {[%clk 0:03:01]}
2... c5 {[%clk 0:02:57.8]} 3. g3 {[%clk 0:03:01.1]} 3... g6 {[%clk 0:02:57.3]}
4. Bg2 {[%clk 0:03:01.5]} 4... Bg7 {[%clk 0:02:58]} 5. O-O {[%clk 0:03:01.5]}
5... d5 {[%clk 0:02:58.6]} 6. cxd5 {[%clk 0:03:00]} 6... Nxd5 {[%clk 0:02:58.7]}
7. Nc3 {[%clk 0:03:00.6]} 7... O-O {[%clk 0:02:58.9]} 8. Nxd5 {[%clk 0:02:57.8]}
8... Qxd5 {[%clk 0:02:58.8]} 9. d3 {[%clk 0:02:57.9]} 9... Nc6 {[%clk
0:02:59.3]} 10. Be3 {[%clk 0:02:58]} 10... Bd7 {[%clk 0:02:59.3]} 11. Rc1 {[%clk
0:02:52.1]} 11... Qxa2 {[%clk 0:02:53.1]} 12. Bxc5 {[%clk 0:02:48.5]} 12... Qxb2
{[%clk 0:02:41.5]} 13. Rb1 {[%clk 0:02:21.3]} 13... Qc3 {[%clk 0:02:40.5]} 14.
d4 {[%clk 0:02:20.5]} 14... b6 {[%clk 0:02:38.1]} 15. Rc1 {[%clk 0:02:17.3]}
15... Qa5 {[%clk 0:02:31]} 16. Ne5 {[%clk 0:02:00.3]} 16... Nxe5 {[%clk
0:01:58.5]} 17. dxe5 {[%clk 0:01:46.3]} 17... Ba4 {[%clk 0:01:54.4]} 18. Qd5
{[%clk 0:01:04.3]} 18... bxc5 {[%clk 0:01:43.5]} 19. Rxc5 {[%clk 0:01:00.9]}
19... Qb6 {[%clk 0:01:42]} 20. Rc4 {[%clk 0:00:42.6]} 20... Bb3 {[%clk
0:01:38.8]} 0-1

[Event "*** Titled Tuesday Blitz"]
[Site "Chess.com"]
[Date "2020.04.21"]
[Round "4"]
[White "KubaGepard"]
[Black "warmoatmeal"]
[Result "1-0"]
[WhiteElo "2392"]
[BlackElo "1983"]
[TimeControl "180+1"]
[EndTime "10:37:40 PDT"]
[Termination "KubaGepard won by resignation"]

1. d4 {[%clk 0:03:00.9]} 1... Nf6 {[%clk 0:02:47]} 2. Nf3 {[%clk 0:03:00.9]}
2... d5 {[%clk 0:02:46.4]} 3. c4 {[%clk 0:03:00.1]} 3... e6 {[%clk 0:02:46.9]}
4. e3 {[%clk 0:03:00.2]} 4... Be7 {[%clk 0:02:45.9]} 5. b3 {[%clk 0:02:58.7]}
5... O-O {[%clk 0:02:45.4]} 6. Bb2 {[%clk 0:02:59.2]} 6... b6 {[%clk 0:02:43.4]}
7. Nbd2 {[%clk 0:02:58.8]} 7... Bb7 {[%clk 0:02:43.6]} 8. Bd3 {[%clk 0:02:57.6]}
8... c5 {[%clk 0:02:41.7]} 9. cxd5 {[%clk 0:02:55.8]} 9... exd5 {[%clk
0:02:37.7]} 10. O-O {[%clk 0:02:55.6]} 10... Nc6 {[%clk 0:02:35.3]} 11. Rc1
{[%clk 0:02:53]} 11... cxd4 {[%clk 0:02:34.9]} 12. Nxd4 {[%clk 0:02:51.5]} 12...
Nxd4 {[%clk 0:02:35]} 13. Bxd4 {[%clk 0:02:50.6]} 13... Rc8 {[%clk 0:02:35.3]}
14. Nf3 {[%clk 0:02:48.5]} 14... Rxc1 {[%clk 0:02:34.4]} 15. Qxc1 {[%clk
0:02:48.6]} 15... Qc8 {[%clk 0:02:35.1]} 16. Qb1 {[%clk 0:02:48.6]} 16... h6
{[%clk 0:02:33.5]} 17. Rc1 {[%clk 0:02:45.9]} 17... Qd7 {[%clk 0:02:32.2]} 18.
Ne5 {[%clk 0:02:43.5]} 18... Qe6 {[%clk 0:02:25.3]} 19. Rc7 {[%clk 0:02:36.2]}
19... Rb8 {[%clk 0:01:52.1]} 20. Nd7 {[%clk 0:02:28.9]} 20... Nxd7 {[%clk
0:01:47.8]} 21. Bf5 {[%clk 0:02:28.6]} 21... Qd6 {[%clk 0:01:22.5]} 22. Rxd7
{[%clk 0:02:27.3]} 22... Qa3 {[%clk 0:01:15.9]} 23. Bb2 {[%clk 0:02:23.1]} 23...
Qb4 {[%clk 0:01:14.2]} 24. Qc1 {[%clk 0:02:21]} 24... Rc8 {[%clk 0:01:10.7]} 25.
Qd1 {[%clk 0:02:13.7]} 25... Ba6 {[%clk 0:01:00.9]} 26. a3 {[%clk 0:02:08.2]}
26... Qc5 {[%clk 0:00:46.3]} 27. b4 {[%clk 0:02:06.6]} 27... Be2 {[%clk
0:00:25.8]} 28. Qxe2 {[%clk 0:02:04.2]} 28... Qc1+ {[%clk 0:00:20.7]} 29. Bxc1
{[%clk 0:02:04.2]} 29... Rxc1+ {[%clk 0:00:21]} 30. Qf1 {[%clk 0:02:04.8]} 1-0

[Event "*** Titled Tuesday Blitz"]
[Site "Chess.com"]
[Date "2020.04.21"]
[Round "4"]
[White "DrMelekess"]
[Black "GM_LOADING"]
[Result "1-0"]
[WhiteElo "2702"]
[BlackElo "2510"]
[TimeControl "180+1"]
[EndTime "10:37:44 PDT"]
[Termination "DrMelekess won by resignation"]

1. d4 {[%clk 0:02:59.5]} 1... Nf6 {[%clk 0:03:00]} 2. Nf3 {[%clk 0:02:59.8]}
2... e6 {[%clk 0:02:59.8]} 3. c4 {[%clk 0:02:59.5]} 3... Bb4+ {[%clk 0:02:59.4]}
4. Bd2 {[%clk 0:02:59.1]} 4... a5 {[%clk 0:02:59.2]} 5. e3 {[%clk 0:02:58.8]}
5... b6 {[%clk 0:02:56.5]} 6. Be2 {[%clk 0:02:55.6]} 6... Bb7 {[%clk 0:02:55.9]}
7. O-O {[%clk 0:02:53.4]} 7... Bxd2 {[%clk 0:02:52]} 8. Qxd2 {[%clk 0:02:51.8]}
8... d6 {[%clk 0:02:50.6]} 9. Nc3 {[%clk 0:02:52.1]} 9... Nbd7 {[%clk
0:02:48.5]} 10. Rac1 {[%clk 0:02:51.8]} 10... O-O {[%clk 0:02:47.6]} 11. Qc2
{[%clk 0:02:52.1]} 11... Qe7 {[%clk 0:02:43.5]} 12. Rfd1 {[%clk 0:02:52.2]}
12... Rac8 {[%clk 0:02:34.9]} 13. a3 {[%clk 0:02:50.9]} 13... e5 {[%clk
0:02:26.6]} 14. b4 {[%clk 0:02:48.7]} 14... axb4 {[%clk 0:02:24.7]} 15. axb4
{[%clk 0:02:49.6]} 15... e4 {[%clk 0:02:11.1]} 16. Nd2 {[%clk 0:02:49.5]} 16...
Rfe8 {[%clk 0:02:08.7]} 17. h3 {[%clk 0:02:47.3]} 17... d5 {[%clk 0:01:23.8]}
18. b5 {[%clk 0:02:44.9]} 18... dxc4 {[%clk 0:00:48.4]} 19. Nxc4 {[%clk
0:02:44.5]} 19... Nd5 {[%clk 0:00:43.4]} 20. Nxd5 {[%clk 0:02:39.9]} 20... Bxd5
{[%clk 0:00:44.3]} 21. Ra1 {[%clk 0:02:30.3]} 21... Ra8 {[%clk 0:00:42.6]} 22.
Nd2 {[%clk 0:02:23.5]} 22... Nf6 {[%clk 0:00:37.5]} 23. Bc4 {[%clk 0:02:23.2]}
23... Bxc4 {[%clk 0:00:31.4]} 24. Nxc4 {[%clk 0:02:23.1]} 24... Nd5 {[%clk
0:00:29.4]} 25. Ne5 {[%clk 0:02:20.9]} 25... f6 {[%clk 0:00:24.1]} 26. Qc6
{[%clk 0:02:19]} 26... Qd6 {[%clk 0:00:22.9]} 27. Qxa8 {[%clk 0:02:03.9]} 1-0

[Event "*** Titled Tuesday Blitz"]
[Site "Chess.com"]
[Date "2020.04.21"]
[Round "4"]
[White "bilelou"]
[Black "Sanan_Sjugirov"]
[Result "0-1"]
[WhiteElo "2560"]
[BlackElo "2847"]
[TimeControl "180+1"]
[EndTime "10:37:45 PDT"]
[Termination "Sanan_Sjugirov won by resignation"]

1. d4 {[%clk 0:03:00.9]} 1... d5 {[%clk 0:02:59.4]} 2. c4 {[%clk 0:02:57.3]}
2... e6 {[%clk 0:02:59.2]} 3. Nf3 {[%clk 0:02:57.6]} 3... c6 {[%clk 0:02:59.1]}
4. Qc2 {[%clk 0:02:47.6]} 4... Nf6 {[%clk 0:02:55.9]} 5. g3 {[%clk 0:02:47.8]}
5... dxc4 {[%clk 0:02:55.2]} 6. Qxc4 {[%clk 0:02:47.3]} 6... b5 {[%clk
0:02:55.4]} 7. Qb3 {[%clk 0:02:44.8]} 7... Bb7 {[%clk 0:02:55.7]} 8. Bg2 {[%clk
0:02:44.5]} 8... Nbd7 {[%clk 0:02:55.3]} 9. Ne5 {[%clk 0:02:39.3]} 9... Nxe5
{[%clk 0:02:54.8]} 10. dxe5 {[%clk 0:02:38.5]} 10... Nd5 {[%clk 0:02:55.4]} 11.
O-O {[%clk 0:02:27]} 11... Be7 {[%clk 0:02:55.3]} 12. e4 {[%clk 0:02:16.9]}
12... Nb6 {[%clk 0:02:51.2]} 13. f4 {[%clk 0:02:10.5]} 13... O-O {[%clk
0:02:48.6]} 14. Nd2 {[%clk 0:02:01.9]} 14... a6 {[%clk 0:02:42.9]} 15. Nf3
{[%clk 0:01:59.9]} 15... c5 {[%clk 0:02:42.8]} 16. Qc2 {[%clk 0:01:58.1]} 16...
c4 {[%clk 0:02:35]} 17. Be3 {[%clk 0:01:56.2]} 17... Qc7 {[%clk 0:02:34.4]} 18.
f5 {[%clk 0:01:29.4]} 18... Bc5 {[%clk 0:02:34.1]} 19. Qf2 {[%clk 0:01:27.8]}
19... Nd7 {[%clk 0:02:27.2]} 20. Rad1 {[%clk 0:01:23.3]} 20... Bxe3 {[%clk
0:02:23.6]} 21. Qxe3 {[%clk 0:01:23.4]} 21... Nxe5 {[%clk 0:02:24.2]} 22. Nd4
{[%clk 0:01:05.5]} 22... exf5 {[%clk 0:02:09.2]} 23. Nxf5 {[%clk 0:01:03.2]}
23... f6 {[%clk 0:02:01.8]} 24. h3 {[%clk 0:00:54.3]} 24... Rad8 {[%clk
0:02:01.1]} 25. Kh2 {[%clk 0:00:51.2]} 25... Bc8 {[%clk 0:01:59]} 26. Nd4 {[%clk
0:00:48.2]} 26... Qa7 {[%clk 0:01:51.7]} 27. Qc3 {[%clk 0:00:42.1]} 27... b4
{[%clk 0:01:42.2]} 0-1

[Event "*** Titled Tuesday Blitz"]
[Site "Chess.com"]
[Date "2020.04.21"]
[Round "4"]
[White "tan275"]
[Black "Budisavljevic"]
[Result "0-1"]
[WhiteElo "2146"]
[BlackElo "2446"]
[TimeControl "180+1"]
[EndTime "10:37:46 PDT"]
[Termination "Budisavljevic won by resignation"]

1. d4 {[%clk 0:02:55.5]} 1... Nf6 {[%clk 0:02:59.8]} 2. c4 {[%clk 0:02:53.5]}
2... a6 {[%clk 0:02:59.6]} 3. g3 {[%clk 0:02:49.2]} 3... c5 {[%clk 0:02:57.8]}
4. d5 {[%clk 0:02:45.9]} 4... e6 {[%clk 0:02:57.9]} 5. Bg2 {[%clk 0:02:44]} 5...
exd5 {[%clk 0:02:57.2]} 6. cxd5 {[%clk 0:02:43.1]} 6... d6 {[%clk 0:02:57.7]} 7.
a4 {[%clk 0:02:42.6]} 7... g6 {[%clk 0:02:57.5]} 8. Nf3 {[%clk 0:02:42.3]} 8...
Bg7 {[%clk 0:02:57.9]} 9. O-O {[%clk 0:02:42.9]} 9... O-O {[%clk 0:02:58.3]} 10.
Nc3 {[%clk 0:02:41]} 10... Re8 {[%clk 0:02:58.3]} 11. Bf4 {[%clk 0:02:41.2]}
11... Nh5 {[%clk 0:02:53.2]} 12. Bg5 {[%clk 0:02:39.9]} 12... Qb6 {[%clk
0:02:48.8]} 13. Qd2 {[%clk 0:02:36.8]} 13... Nd7 {[%clk 0:02:45.3]} 14. Rad1
{[%clk 0:02:24]} 14... Ne5 {[%clk 0:02:39.1]} 15. Nxe5 {[%clk 0:02:17.5]} 15...
Bxe5 {[%clk 0:02:40]} 16. Bf3 {[%clk 0:02:05.7]} 16... Ng7 {[%clk 0:02:29.7]}
17. e4 {[%clk 0:02:00.3]} 17... Qb4 {[%clk 0:02:21.3]} 18. Rfe1 {[%clk 0:01:52]}
18... Bd7 {[%clk 0:02:18.6]} 19. Bh6 {[%clk 0:01:11.4]} 19... Bxa4 {[%clk
0:02:10.1]} 20. Nxa4 {[%clk 0:01:06.1]} 20... Qxa4 {[%clk 0:02:11]} 21. Bg2
{[%clk 0:00:56.5]} 21... Qb4 {[%clk 0:01:45.9]} 22. Qxb4 {[%clk 0:00:49.1]}
22... cxb4 {[%clk 0:01:46.8]} 23. b3 {[%clk 0:00:44.7]} 23... a5 {[%clk
0:01:44.3]} 24. Ra1 {[%clk 0:00:38.2]} 24... Bxa1 {[%clk 0:01:42.3]} 25. Rxa1
{[%clk 0:00:38.8]} 25... Rec8 {[%clk 0:01:42]} 0-1

[Event "*** Titled Tuesday Blitz"]
[Site "Chess.com"]
[Date "2020.04.21"]
[Round "4"]
[White "Jospem"]
[Black "KrolPawel92OnTwitch"]
[Result "1-0"]
[WhiteElo "2836"]
[BlackElo "2692"]
[TimeControl "180+1"]
[EndTime "10:37:47 PDT"]
[Termination "Jospem won by resignation"]

1. c4 {[%clk 0:03:00.9]} 1... Nf6 {[%clk 0:02:57.6]} 2. Nc3 {[%clk 0:03:00]}
2... g6 {[%clk 0:02:57.8]} 3. g3 {[%clk 0:02:58.4]} 3... Bg7 {[%clk 0:02:57.8]}
4. Bg2 {[%clk 0:02:59.1]} 4... O-O {[%clk 0:02:58.5]} 5. d4 {[%clk 0:02:59.2]}
5... c6 {[%clk 0:02:57.6]} 6. e4 {[%clk 0:02:59.1]} 6... d6 {[%clk 0:02:57.5]}
7. Nge2 {[%clk 0:02:59.5]} 7... e5 {[%clk 0:02:53.9]} 8. O-O {[%clk 0:02:57.9]}
8... Nbd7 {[%clk 0:02:48.4]} 9. h3 {[%clk 0:02:56.5]} 9... Re8 {[%clk
0:02:48.2]} 10. d5 {[%clk 0:02:54.4]} 10... c5 {[%clk 0:02:41.8]} 11. Be3 {[%clk
0:02:49]} 11... a6 {[%clk 0:02:36.8]} 12. a4 {[%clk 0:02:48.4]} 12... Rb8 {[%clk
0:02:33.7]} 13. Qd3 {[%clk 0:02:46.5]} 13... Nb6 {[%clk 0:02:33.1]} 14. f4
{[%clk 0:02:42.9]} 14... Nfd7 {[%clk 0:02:32.8]} 15. f5 {[%clk 0:02:43]} 15...
gxf5 {[%clk 0:02:24.8]} 16. Rxf5 {[%clk 0:02:38.4]} 16... Nf8 {[%clk 0:02:24]}
17. Rf2 {[%clk 0:02:38.4]} 17... Nbd7 {[%clk 0:02:07.7]} 18. Raf1 {[%clk
0:02:37.8]} 18... Qe7 {[%clk 0:02:06.7]} 19. g4 {[%clk 0:02:26.4]} 19... Ng6
{[%clk 0:02:00.7]} 20. Rxf7 {[%clk 0:02:22.2]} 20... Qxf7 {[%clk 0:02:00]} 21.
Rxf7 {[%clk 0:02:23.1]} 21... Kxf7 {[%clk 0:02:00.9]} 22. Ng3 {[%clk 0:02:24]}
22... Nf4 {[%clk 0:01:58.6]} 23. Qd2 {[%clk 0:02:23.5]} 23... Nf8 {[%clk
0:01:31.4]} 24. Nf5 {[%clk 0:02:20.7]} 24... Bxf5 {[%clk 0:01:19.4]} 25. exf5
{[%clk 0:02:21.6]} 25... Nxg2 {[%clk 0:01:19.3]} 26. Kxg2 {[%clk 0:02:20.9]}
26... Nd7 {[%clk 0:01:17.7]} 27. Ne4 {[%clk 0:02:20.7]} 27... Bf8 {[%clk
0:01:17.7]} 28. Bh6 {[%clk 0:02:15.7]} 28... Be7 {[%clk 0:01:15.2]} 29. g5
{[%clk 0:02:08]} 29... Rg8 {[%clk 0:01:10.6]} 30. Kh2 {[%clk 0:02:06.3]} 30...
Rbd8 {[%clk 0:00:56.4]} 31. Qe2 {[%clk 0:02:04.5]} 31... Bf8 {[%clk 0:00:31.3]}
32. Qh5+ {[%clk 0:02:03.3]} 32... Ke7 {[%clk 0:00:29.7]} 33. f6+ {[%clk
0:02:03.7]} 33... Nxf6 {[%clk 0:00:29.4]} 34. gxf6+ {[%clk 0:02:03.8]} 34... Kd7
{[%clk 0:00:28.8]} 35. Qf7+ {[%clk 0:02:04.3]} 1-0

[Event "*** Titled Tuesday Blitz"]
[Site "Chess.com"]
[Date "2020.04.21"]
[Round "4"]
[White "MrVenky"]
[Black "PredragNikac"]
[Result "1-0"]
[WhiteElo "2531"]
[BlackElo "2270"]
[TimeControl "180+1"]
[EndTime "10:37:47 PDT"]
[Termination "MrVenky won by resignation"]

1. e4 {[%clk 0:03:00.9]} 1... c5 {[%clk 0:02:59.5]} 2. Nc3 {[%clk 0:03:00.1]}
2... d6 {[%clk 0:03:00.4]} 3. f4 {[%clk 0:02:58.1]} 3... g6 {[%clk 0:03:00.7]}
4. Nf3 {[%clk 0:02:57.2]} 4... Bg7 {[%clk 0:03:01.2]} 5. Bc4 {[%clk 0:02:56.4]}
5... Nc6 {[%clk 0:03:01.6]} 6. O-O {[%clk 0:02:55.4]} 6... e6 {[%clk 0:03:01.9]}
7. d3 {[%clk 0:02:52.3]} 7... Nge7 {[%clk 0:03:00.6]} 8. Qe1 {[%clk 0:02:52.4]}
8... a6 {[%clk 0:02:59.1]} 9. a3 {[%clk 0:02:50.8]} 9... b5 {[%clk 0:02:58.8]}
10. Ba2 {[%clk 0:02:47.1]} 10... Qb6 {[%clk 0:02:58.8]} 11. Kh1 {[%clk
0:02:46.1]} 11... Bb7 {[%clk 0:02:57.1]} 12. f5 {[%clk 0:02:42]} 12... gxf5
{[%clk 0:02:56.1]} 13. exf5 {[%clk 0:02:41.4]} 13... Bxc3 {[%clk 0:02:51.8]} 14.
bxc3 {[%clk 0:02:37.2]} 14... e5 {[%clk 0:02:51.4]} 15. Ng5 {[%clk 0:02:32.6]}
15... Nd8 {[%clk 0:02:31.3]} 16. Ne4 {[%clk 0:02:20.9]} 16... Bxe4 {[%clk
0:02:16.8]} 17. Qxe4 {[%clk 0:02:20]} 17... Qc6 {[%clk 0:02:15.1]} 18. Qh4
{[%clk 0:01:44.1]} 18... Rg8 {[%clk 0:01:49.2]} 19. Bg5 {[%clk 0:01:42.5]} 19...
h6 {[%clk 0:01:38.5]} 20. Qxh6 {[%clk 0:01:41.1]} 20... Nb7 {[%clk 0:00:47.2]}
21. Bxf7+ {[%clk 0:01:34.1]} 21... Kxf7 {[%clk 0:00:34.7]} 22. Qf6+ {[%clk
0:01:32.8]} 1-0

[Event "*** Titled Tuesday Blitz"]
[Site "Chess.com"]
[Date "2020.04.21"]
[Round "4"]
[White "RestartingChess"]
[Black "IAgrest"]
[Result "1-0"]
[WhiteElo "2534"]
[BlackElo "2281"]
[TimeControl "180+1"]
[EndTime "10:37:47 PDT"]
[Termination "RestartingChess won by resignation"]

1. e4 {[%clk 0:03:00.9]} 1... e5 {[%clk 0:02:59.4]} 2. Nf3 {[%clk 0:02:59.9]}
2... Nc6 {[%clk 0:02:59.5]} 3. Bc4 {[%clk 0:02:59.9]} 3... Nf6 {[%clk
0:02:59.1]} 4. Ng5 {[%clk 0:03:00.5]} 4... d5 {[%clk 0:02:58.6]} 5. exd5 {[%clk
0:03:01.4]} 5... Na5 {[%clk 0:02:58.3]} 6. Bb5+ {[%clk 0:03:02]} 6... Bd7 {[%clk
0:02:56.5]} 7. Bxd7+ {[%clk 0:03:01.2]} 7... Qxd7 {[%clk 0:02:56.2]} 8. O-O
{[%clk 0:03:01.1]} 8... Nxd5 {[%clk 0:02:37.5]} 9. Re1 {[%clk 0:02:59.3]} 9...
f6 {[%clk 0:02:28]} 10. Nf3 {[%clk 0:02:57.2]} 10... O-O-O {[%clk 0:02:27.1]}
11. d3 {[%clk 0:02:54.9]} 11... Nc6 {[%clk 0:02:25]} 12. Nc3 {[%clk 0:02:53.7]}
12... g5 {[%clk 0:02:13.2]} 13. Nxd5 {[%clk 0:02:40.4]} 13... Qxd5 {[%clk
0:02:14.1]} 14. Qe2 {[%clk 0:02:41.1]} 14... Kb8 {[%clk 0:01:55]} 15. a3 {[%clk
0:02:38.3]} 15... h5 {[%clk 0:01:49.4]} 16. Qe4 {[%clk 0:02:35.5]} 16... Qd7
{[%clk 0:01:48.5]} 17. b4 {[%clk 0:02:27.6]} 17... g4 {[%clk 0:01:43.5]} 18. Nh4
{[%clk 0:02:26.7]} 18... Nd4 {[%clk 0:01:37.4]} 19. Ra2 {[%clk 0:02:16.2]} 19...
Bd6 {[%clk 0:01:22.4]} 20. c3 {[%clk 0:02:12.7]} 20... f5 {[%clk 0:01:15.8]} 21.
Qd5 {[%clk 0:02:06]} 21... e4 {[%clk 0:01:03.9]} 22. Qxd4 {[%clk 0:01:59.9]}
22... exd3 {[%clk 0:01:02.2]} 23. Bg5 {[%clk 0:01:47.1]} 23... Rde8 {[%clk
0:00:53.1]} 24. Raa1 {[%clk 0:01:40.8]} 24... Rhg8 {[%clk 0:00:47.1]} 25. Be3
{[%clk 0:01:36.8]} 25... Re4 {[%clk 0:00:33.8]} 26. Qxa7+ {[%clk 0:01:35.9]} 1-0

[Event "*** Titled Tuesday Blitz"]
[Site "Chess.com"]
[Date "2020.04.21"]
[Round "4"]
[White "VALPARAISO37"]
[Black "Ginger_GM"]
[Result "0-1"]
[WhiteElo "2350"]
[BlackElo "2583"]
[TimeControl "180+1"]
[EndTime "10:37:50 PDT"]
[Termination "Ginger_GM won by checkmate"]

1. d4 {[%clk 0:03:00.9]} 1... Nf6 {[%clk 0:02:58.9]} 2. c4 {[%clk 0:03:00.5]}
2... e5 {[%clk 0:02:57.5]} 3. dxe5 {[%clk 0:03:00.2]} 3... Ne4 {[%clk
0:02:57.2]} 4. Nd2 {[%clk 0:02:59.1]} 4... Nc5 {[%clk 0:02:54.8]} 5. b4 {[%clk
0:02:58]} 5... Ne6 {[%clk 0:02:49.4]} 6. a3 {[%clk 0:02:57.6]} 6... a5 {[%clk
0:02:48.3]} 7. b5 {[%clk 0:02:58.2]} 7... d6 {[%clk 0:02:47.3]} 8. Bb2 {[%clk
0:02:57]} 8... dxe5 {[%clk 0:02:46.9]} 9. Bxe5 {[%clk 0:02:57.1]} 9... Nd7
{[%clk 0:02:47.2]} 10. Bb2 {[%clk 0:02:56]} 10... Bc5 {[%clk 0:02:37.5]} 11.
Ngf3 {[%clk 0:02:55.1]} 11... a4 {[%clk 0:02:35.2]} 12. e3 {[%clk 0:02:53]}
12... b6 {[%clk 0:02:30.5]} 13. Bd3 {[%clk 0:02:50.2]} 13... Bb7 {[%clk
0:02:29.5]} 14. Qc2 {[%clk 0:02:48.6]} 14... Qe7 {[%clk 0:02:29]} 15. Be4 {[%clk
0:02:48.2]} 15... Bxe4 {[%clk 0:02:19]} 16. Qxe4 {[%clk 0:02:46.5]} 16... O-O
{[%clk 0:02:18.7]} 17. h4 {[%clk 0:02:44.9]} 17... f5 {[%clk 0:02:16.2]} 18. Qc2
{[%clk 0:02:38.9]} 18... f4 {[%clk 0:01:54.9]} 19. Ng5 {[%clk 0:02:38.8]} 19...
g6 {[%clk 0:01:39.3]} 20. Nde4 {[%clk 0:02:34.5]} 20... fxe3 {[%clk 0:01:34.7]}
21. Qc3 {[%clk 0:02:32.6]} 21... Bd4 {[%clk 0:01:33.7]} 22. Qc2 {[%clk
0:02:25.7]} 22... exf2+ {[%clk 0:01:33.4]} 23. Kf1 {[%clk 0:02:26]} 23... Ndc5
{[%clk 0:01:30.2]} 24. Nxc5 {[%clk 0:02:23.7]} 24... Bxc5 {[%clk 0:01:23]} 25.
Qe4 {[%clk 0:02:13]} 25... Nxg5 {[%clk 0:01:20.7]} 26. Qxe7 {[%clk 0:02:12.6]}
26... Bxe7 {[%clk 0:01:20]} 27. hxg5 {[%clk 0:02:13.1]} 27... Bxg5 {[%clk
0:01:19]} 28. Rd1 {[%clk 0:02:12.9]} 28... Rae8 {[%clk 0:01:17.1]} 29. Rh3
{[%clk 0:02:09.4]} 29... Bd2 {[%clk 0:01:13.3]} 30. Rf3 {[%clk 0:01:55.7]} 30...
Re1+ {[%clk 0:01:11.1]} 31. Kxf2 {[%clk 0:01:56.4]} 31... Rxf3+ {[%clk
0:01:10.4]} 32. gxf3 {[%clk 0:01:55.3]} 32... Rxd1 {[%clk 0:01:10.6]} 33. Be5
{[%clk 0:01:56.1]} 33... Rc1 {[%clk 0:00:59.1]} 34. Bxc7 {[%clk 0:01:56]} 34...
Ba5 {[%clk 0:00:57.3]} 35. c5 {[%clk 0:01:52.9]} 35... Rxc5 {[%clk 0:00:57.2]}
36. Bd6 {[%clk 0:01:53.3]} 36... Rxb5 {[%clk 0:00:57.1]} 37. Ke3 {[%clk
0:01:53.3]} 37... Kf7 {[%clk 0:00:57.2]} 38. Ke4 {[%clk 0:01:53.3]} 38... Ke6
{[%clk 0:00:57.5]} 39. Bf8 {[%clk 0:01:53.5]} 39... Rb3 {[%clk 0:00:57]} 40. f4
{[%clk 0:01:52.7]} 40... h5 {[%clk 0:00:56.2]} 41. f5+ {[%clk 0:01:52.3]} 41...
gxf5+ {[%clk 0:00:56.1]} 42. Kf4 {[%clk 0:01:53.1]} 42... Bd2# {[%clk
0:00:55.9]} 0-1